[Event "Mitropa Online Cup Women 2021"]
[Site "Hybrid"]
[Date "2021.05.04"]
[Round "4.3"]
[White "Worek, Joanna"]
[Black "Thomas, Anysia"]
[Result "0-1"]
[ECO "D85"]
[WhiteElo "2322"]
[BlackElo "2164"]
[Annotator "NA"]
[PlyCount "112"]
[EventDate "2021.05.04"]
[EventType "team-tourn"]
[EventCountry "NET"]
[SourceTitle "playchess.com"]
[Source "ChessBase"]
[SourceQuality "1"]
[WhiteTeam "Czech Republic"]
[BlackTeam "France"]
[WhiteTeamCountry "CZE"]
[BlackTeamCountry "FRA"]
[TimeControl "40/5400+30:1800+30"]

1. d4 {[%emt 0:00:00]} Nf6 {[%emt 0:00:17]} 2. c4 {[%emt 0:00:08]} g6 {[%emt 0:00:18]} 3. Nc3 {[%emt 0:00:07]} d5 {[%emt 0:00:13]} 4. cxd5 {[%emt 0:00:05]} Nxd5 {[%emt 0:00:13]} 5. e4 {[%emt 0:00:07]} Nxc3 {[%emt 0:00:10]} 6. bxc3 {[%emt 0:00:09]} Bg7 {[%emt 0:00:11]} 7. Be3 {[%emt 0:00:06]} c5 {[%emt 0:00:33]} 8. Nf3 {[%emt 0:00:08]} Nc6 {[%emt 0:01:44]} 9. Rc1 {[%emt 0:00:51]} Qa5 {[%emt 0:00:46]} 10. d5 {[%emt 0:00:52]} Ne5 {[%emt 0:12:03]} 11. Nxe5 {[%emt 0:00:09]} Bxe5 {[%emt 0:00:09]} 12. Qd2 {[%emt 0:00:06]} Bg7 {[%emt 0:03:30]} 13. Be2 {[%emt 0:07:18]} Bd7 {[%emt 0:07:18]} 14. O-O {[%emt 0:15:16]} O-O {[%emt 0:08:44]} 15. f4 {[%emt 0:05:44]} e6 {[%emt 0:20:22]} 16. Bf3 {[%emt 0:15:13]} exd5 {[%emt 0:05:04]} 17. exd5 {[%emt 0:01:05]} Rfe8 {[%emt 0:07:06]} 18. Bf2 {[%emt 0:01:19]} Bb5 {[%emt 0:07:22]} 19. Rfd1 {[%emt 0:00:46]} Ba4 {[%emt 0:00:36]} 20. Re1 {[%emt 0:00:37]} Rxe1+ {[%emt 0:01:09]} 21. Bxe1 {[%emt 0:01:50]} c4 {[%emt 0:05:43]} 22. Bf2 {[%emt 0:03:21]} Rd8 {[%emt 0:01:18]} 23. Bd4 {[%emt 0:05:11]} Bh6 {[%emt 0:07:14]} 24. Re1 {[%emt 0:04:32]} Qc7 {[%emt 0:02:53]} 25. g3 {[%emt 0:01:13]} Bf8 {[%emt 0:02:00]} 26. Kg2 {[%emt 0:03:19]} b6 {[%emt 0:01:23]} 27. h4 {[%emt 0:02:28]} Re8 {[%emt 0:02:05]} 28. Rh1 {[%emt 0:04:50]} h5 {[%emt 0:01:07]} 29. f5 {[%emt 0:03:46]} Qd6 {[%emt 0:01:37]} 30. Qg5 {[%emt 0:03:26]} Kh7 {[%emt 0:00:56]} 31. Qf4 {[%emt 0:08:41]} Qxf4 {[%emt 0:00:22]} 32. gxf4 {[%emt 0:00:05]} Bd6 {[%emt 0:00:21]} 33. fxg6+ {[%emt 0:03:40]} fxg6 {[%emt 0:00:06]} 34. f5 {[%emt 0:00:42]} gxf5 {[%emt 0:00:20]} 35. Bxh5 {[%emt 0:00:03]} Rg8+ {[%emt 0:00:11]} 36. Kf2 {[%emt 0:00:16]} Bc2 {[%emt 0:01:01]} 37. Bf3 {[%emt 0:00:19]} Bd3 {[%emt 0:00:53]} 38. Rh3 {[%emt 0:05:57]} Bb1 {[%emt 0:00:47]} 39. Be2 {[%emt 0:00:16]} Bxa2 {[%emt 0:00:22]} 40. Re3 {[%emt 0:00:00]} Bb1 {[%emt 0:00:00]} 41. Bxc4 {[%emt 0:10:02]} Be4 {[%emt 0:04:53]} 42. Kf1 {[%emt 0:04:33]} Rg4 {[%emt 0:04:12]} 43. Bd3 {[%emt 0:02:04]} Rxh4 {[%emt 0:03:13]} 44. Bxe4 {[%emt 0:01:11]} fxe4 {[%emt 0:00:44]} 45. c4 {[%emt 0:02:12]} Kg6 {[%emt 0:02:23]} 46. Rb3 {[%emt 0:00:18]} Kf5 {[%emt 0:05:33]} 47. Bf2 {[%emt 0:06:09]} Rh1+ {[%emt 0:03:36]} 48. Ke2 {[%emt 0:00:17]} Rc1 {[%emt 0:01:33]} 49. Rh3 {[%emt 0:00:05]} Rc2+ {[%emt 0:00:35]} 50. Kf1 {[%emt 0:00:23]} Rxc4 {[%emt 0:00:40]} 51. Rh7 {[%emt 0:00:30]} Rc1+ {[%emt 0:01:55]} 52. Ke2 {[%emt 0:00:04]} Rc2+ {[%emt 0:00:10]} 53. Kf1 {[%emt 0:00:22]} Bc5 {[%emt 0:03:17]} 54. Bg3 {[%emt 0:01:45]} e3 {[%emt 0:02:04]} 55. Be1 {[%emt 0:02:29]} e2+ {[%emt 0:01:00]} 56. Kg2 {[%emt 0:00:02]} Rc1 {[%emt 0:00:50]} 0-1

[Event "Mitropa Online Cup Women 2021"]
[Site "Hybrid"]
[Date "2021.05.04"]
[Round "4.3"]
[White "Olsarova, Karolina"]
[Black "Guichard, Pauline"]
[Result "1/2-1/2"]
[ECO "C60"]
[WhiteElo "2290"]
[BlackElo "2415"]
[Annotator "NA"]
[PlyCount "89"]
[EventDate "2021.05.04"]
[EventType "team-tourn"]
[EventCountry "NET"]
[SourceTitle "playchess.com"]
[Source "ChessBase"]
[SourceQuality "1"]
[WhiteTeam "Czech Republic"]
[BlackTeam "France"]
[WhiteTeamCountry "CZE"]
[BlackTeamCountry "FRA"]
[TimeControl "40/5400+30:1800+30"]

1. e4 {[%emt 0:00:00]} e5 {[%emt 0:00:13]} 2. Nf3 {[%emt 0:00:08]} Nc6 {[%emt 0:00:11]} 3. Bb5 {[%emt 0:00:07]} g6 {[%emt 0:00:08]} 4. c3 {[%emt 0:01:56]} Bg7 {[%emt 0:01:22]} 5. d4 {[%emt 0:01:53]} exd4 {[%emt 0:00:27]} 6. cxd4 {[%emt 0:00:12]} a6 {[%emt 0:00:17]} 7. Ba4 {[%emt 0:01:07]} b5 {[%emt 0:00:13]} 8. Bb3 {[%emt 0:00:34]} d6 {[%emt 0:02:45]} 9. O-O {[%emt 0:01:00]} Bg4 {[%emt 0:01:15]} 10. Be3 {[%emt 0:00:19]} Na5 {[%emt 0:01:07]} 11. Nc3 {[%emt 0:00:48]} Nxb3 {[%emt 0:10:31]} 12. axb3 {[%emt 0:00:09]} Ne7 {[%emt 0:00:49]} 13. h3 {[%emt 0:00:22]} Bxf3 {[%emt 0:06:04]} 14. Qxf3 {[%emt 0:00:08]} O-O {[%emt 0:00:09]} 15. Rfd1 {[%emt 0:01:23]} c6 {[%emt 0:04:33]} 16. b4 {[%emt 0:07:45]} a5 {[%emt 0:05:03]} 17. bxa5 {[%emt 0:05:23]} b4 {[%emt 0:02:56]} 18. Nb1 {[%emt 0:06:27]} Rxa5 {[%emt 0:01:05]} 19. Nd2 {[%emt 0:00:34]} d5 {[%emt 0:08:35]} 20. e5 {[%emt 0:27:50]} f6 {[%emt 0:02:18]} 21. exf6 {[%emt 0:05:16]} Bxf6 {[%emt 0:00:50]} 22. Bh6 {[%emt 0:10:06]} Rxa1 {[%emt 0:08:03]} 23. Rxa1 {[%emt 0:00:49]} Rf7 {[%emt 0:00:18]} 24. Qd3 {[%emt 0:01:29]} Nf5 {[%emt 0:04:35]} 25. Be3 {[%emt 0:00:40]} Re7 {[%emt 0:00:54]} 26. Nf3 {[%emt 0:10:05]} Qb8 {[%emt 0:13:04]} 27. Qa6 {[%emt 0:04:51]} Qe8 {[%emt 0:06:38]} 28. Qb6 {[%emt 0:06:12]} Nxe3 {[%emt 0:11:31]} 29. fxe3 {[%emt 0:00:05]} Rxe3 {[%emt 0:00:06]} 30. Qxb4 {[%emt 0:00:19]} Kg7 {[%emt 0:06:55]} 31. Ra7+ {[%emt 0:03:32]} Re7 {[%emt 0:00:12]} 32. Rxe7+ {[%emt 0:01:34]} Bxe7 {[%emt 0:00:09]} 33. Qb7 {[%emt 0:00:30]} Kh8 {[%emt 0:02:18]} 34. Ne5 {[%emt 0:00:58]} c5 {[%emt 0:00:06]} 35. Qxd5 {[%emt 0:01:26]} cxd4 {[%emt 0:00:09]} 36. Qe6 {[%emt 0:00:49]} Qf8 {[%emt 0:01:23]} 37. Qd5 {[%emt 0:00:58]} Qc8 {[%emt 0:00:40]} 38. Nd3 {[%emt 0:00:37]} Bf6 {[%emt 0:00:07]} 39. Qd6 {[%emt 0:00:23]} Kg7 {[%emt 0:00:22]} 40. Qd5 {[%emt 0:00:00]} Qc2 {[%emt 0:00:00]} 41. Qb7+ {[%emt 0:02:38]} Kh6 {[%emt 0:02:05]} 42. Qf3 {[%emt 0:00:48]} Kg7 {[%emt 0:00:24]} 43. Qb7+ {[%emt 0:01:01]} Kh6 {[%emt 0:00:23]} 44. Qf3 {[%emt 0:01:55]} Kg7 {[%emt 0:00:34]} 45. Qb7+ {[%emt 0:01:39]} 1/2-1/2

[Event "Mitropa Online Cup Women 2021"]
[Site "Hybrid"]
[Date "2021.05.04"]
[Round "4.3"]
[White "Navrotescu, Andreea-Cristiana"]
[Black "Petrova, Kristyna"]
[Result "1-0"]
[ECO "E29"]
[WhiteElo "2247"]
[BlackElo "2303"]
[Annotator "NA"]
[PlyCount "137"]
[EventDate "2021.05.04"]
[EventType "team-tourn"]
[EventCountry "NET"]
[SourceTitle "playchess.com"]
[Source "ChessBase"]
[SourceQuality "1"]
[WhiteTeam "France"]
[BlackTeam "Czech Republic"]
[WhiteTeamCountry "FRA"]
[BlackTeamCountry "CZE"]
[TimeControl "40/5400+30:1800+30"]

1. d4 {[%emt 0:00:00]} Nf6 {[%emt 0:01:55]} 2. c4 {[%emt 0:00:07]} e6 {[%emt 0:00:09]} 3. Nc3 {[%emt 0:00:12]} Bb4 {[%emt 0:00:11]} 4. e3 {[%emt 0:00:43]} c5 {[%emt 0:00:27]} 5. a3 {[%emt 0:01:40]} Bxc3+ {[%emt 0:05:35]} 6. bxc3 {[%emt 0:00:13]} O-O {[%emt 0:00:50]} 7. Bd3 {[%emt 0:00:43]} d6 {[%emt 0:05:13]} 8. e4 {[%emt 0:07:42]} Nc6 {[%emt 0:03:01]} 9. Ne2 {[%emt 0:01:18]} e5 {[%emt 0:06:57]} 10. d5 {[%emt 0:00:55]} Ne7 {[%emt 0:07:09]} 11. Bg5 {[%emt 0:17:22]} Nh5 {[%emt 0:09:18]} 12. Rg1 {[%emt 0:23:08]} f6 {[%emt 0:27:58]} 13. Be3 {[%emt 0:01:27]} f5 {[%emt 0:04:23]} 14. exf5 {[%emt 0:21:00]} Bxf5 {[%emt 0:00:12]} 15. g4 {[%emt 0:00:53]} Bxd3 {[%emt 0:01:01]} 16. gxh5 {[%emt 0:04:05]} Bxe2 {[%emt 0:07:46]} 17. Qxe2 {[%emt 0:00:21]} Nf5 {[%emt 0:00:04]} 18. Qg4 {[%emt 0:03:31]} Qh4 {[%emt 0:04:49]} 19. Qxh4 {[%emt 0:01:20]} Nxh4 {[%emt 0:00:07]} 20. Ke2 {[%emt 0:00:39]} Rf5 {[%emt 0:01:41]} 21. Rg5 {[%emt 0:02:30]} Raf8 {[%emt 0:01:34]} 22. Rb1 {[%emt 0:04:27]} b6 {[%emt 0:00:16]} 23. Rbg1 {[%emt 0:01:43]} R8f7 {[%emt 0:04:03]} 24. Rxf5 {[%emt 0:03:28]} Rxf5 {[%emt 0:00:17]} 25. Rg5 {[%emt 0:01:34]} Rf7 {[%emt 0:05:33]} 26. Rg4 {[%emt 0:00:31]} Nf5 {[%emt 0:00:03]} 27. Bd2 {[%emt 0:00:27]} Kf8 {[%emt 0:00:33]} 28. Kd3 {[%emt 0:00:34]} Ke7 {[%emt 0:02:01]} 29. Ke4 {[%emt 0:00:23]} Kd7 {[%emt 0:00:37]} 30. f4 {[%emt 0:01:07]} Nh6 {[%emt 0:00:17]} 31. Rg5 {[%emt 0:00:28]} exf4 {[%emt 0:00:03]} 32. Bxf4 {[%emt 0:00:10]} Ng8 {[%emt 0:00:10]} 33. Rf5 {[%emt 0:00:31]} Nf6+ {[%emt 0:01:25]} 34. Kd3 {[%emt 0:00:45]} g6 {[%emt 0:00:43]} 35. hxg6 {[%emt 0:00:04]} hxg6 {[%emt 0:00:02]} 36. Rg5 {[%emt 0:00:06]} Nh5 {[%emt 0:00:05]} 37. Be3 {[%emt 0:01:13]} Rf6 {[%emt 0:00:36]} 38. Rg2 {[%emt 0:00:51]} Ng7 {[%emt 0:00:47]} 39. Ke4 {[%emt 0:00:31]} Nf5 {[%emt 0:00:20]} 40. Bg5 {[%emt 0:00:00]} Rf7 {[%emt 0:00:00]} 41. a4 {[%emt 0:03:58]} Rh7 {[%emt 0:10:04]} 42. Bf6 {[%emt 0:04:40]} Ne7 {[%emt 0:08:30]} 43. Bxe7 {[%emt 0:05:20]} Kxe7 {[%emt 0:01:34]} 44. Rxg6 {[%emt 0:00:07]} Rxh2 {[%emt 0:00:08]} 45. Rg7+ {[%emt 0:00:07]} Kf6 {[%emt 0:09:56]} 46. Rxa7 {[%emt 0:00:12]} Rh3 {[%emt 0:01:01]} 47. Rd7 {[%emt 0:02:00]} Rxc3 {[%emt 0:00:16]} 48. Rxd6+ {[%emt 0:00:20]} Ke7 {[%emt 0:00:08]} 49. Rxb6 {[%emt 0:00:27]} Rxc4+ {[%emt 0:00:09]} 50. Ke5 {[%emt 0:00:06]} Rxa4 {[%emt 0:00:25]} 51. Rb7+ {[%emt 0:04:00]} Kd8 {[%emt 0:00:18]} 52. Ke6 {[%emt 0:00:40]} Kc8 {[%emt 0:03:41]} 53. Rh7 {[%emt 0:00:27]} Re4+ {[%emt 0:01:20]} 54. Kd6 {[%emt 0:00:16]} c4 {[%emt 0:00:10]} 55. Rc7+ {[%emt 0:04:13]} Kd8 {[%emt 0:01:01]} 56. Ra7 {[%emt 0:00:03]} Kc8 {[%emt 0:00:03]} 57. Kc6 {[%emt 0:01:28]} Kb8 {[%emt 0:00:08]} 58. Ra4 {[%emt 0:01:20]} Rh4 {[%emt 0:01:19]} 59. d6 {[%emt 0:01:09]} Rh6 {[%emt 0:00:26]} 60. Rxc4 {[%emt 0:00:18]} Kc8 {[%emt 0:00:14]} 61. Rg4 {[%emt 0:00:42]} Kb8 {[%emt 0:00:15]} 62. Rg8+ {[%emt 0:01:05]} Ka7 {[%emt 0:00:03]} 63. Kc7 {[%emt 0:01:02]} Rh1 {[%emt 0:00:16]} 64. d7 {[%emt 0:00:20]} Rc1+ {[%emt 0:00:03]} 65. Kd6 {[%emt 0:00:07]} Rd1+ {[%emt 0:00:02]} 66. Ke6 {[%emt 0:00:16]} Re1+ {[%emt 0:00:01]} 67. Kf5 {[%emt 0:00:04]} Rf1+ {[%emt 0:00:03]} 68. Ke4 {[%emt 0:00:06]} Re1+ {[%emt 0:00:02]} 69. Kf3 {[%emt 0:00:05]} 1-0

[Event "Mitropa Online Cup Women 2021"]
[Site "Hybrid"]
[Date "2021.05.04"]
[Round "4.3"]
[White "Afraoui, Anaelle"]
[Black "Kanakova, Natalie"]
[Result "0-1"]
[ECO "B28"]
[WhiteElo "2106"]
[BlackElo "2179"]
[Annotator "NA"]
[PlyCount "64"]
[EventDate "2021.05.04"]
[EventType "team-tourn"]
[EventCountry "NET"]
[SourceTitle "playchess.com"]
[Source "ChessBase"]
[SourceQuality "1"]
[WhiteTeam "France"]
[BlackTeam "Czech Republic"]
[WhiteTeamCountry "FRA"]
[BlackTeamCountry "CZE"]
[TimeControl "40/5400+30:1800+30"]

1. e4 {[%emt 0:00:00]} c5 {[%emt 0:00:07]} 2. Nf3 {[%emt 0:00:41]} a6 {[%emt 0:00:12]} 3. c3 {[%emt 0:01:58]} d5 {[%emt 0:00:18]} 4. e5 {[%emt 0:02:26]} d4 {[%emt 0:09:43]} 5. cxd4 {[%emt 0:08:16]} cxd4 {[%emt 0:00:08]} 6. Bc4 {[%emt 0:08:34]} e6 {[%emt 0:02:36]} 7. O-O {[%emt 0:01:18]} Nc6 {[%emt 0:02:42]} 8. d3 {[%emt 0:02:58]} Nge7 {[%emt 0:05:52]} 9. Bg5 {[%emt 0:02:20]} h6 {[%emt 0:01:57]} 10. Bh4 {[%emt 0:01:46]} Qa5 {[%emt 0:07:56]} 11. Qe2 {[%emt 0:02:49]} Nf5 {[%emt 0:02:21]} 12. Bg3 {[%emt 0:01:31]} Be7 {[%emt 0:02:11]} 13. Nbd2 {[%emt 0:01:48]} O-O {[%emt 0:02:26]} 14. a3 {[%emt 0:00:43]} b5 {[%emt 0:02:32]} 15. b4 {[%emt 0:01:39]} Qb6 {[%emt 0:01:04]} 16. Bb3 {[%emt 0:01:30]} Bb7 {[%emt 0:04:29]} 17. Rfc1 {[%emt 0:05:25]} a5 {[%emt 0:09:32]} 18. bxa5 {[%emt 0:02:36]} Rxa5 {[%emt 0:02:54]} 19. a4 {[%emt 0:03:30]} Qa7 {[%emt 0:01:40]} 20. Qd1 {[%emt 0:14:50]} Ra8 {[%emt 0:01:33]} 21. Rab1 {[%emt 0:03:13]} bxa4 {[%emt 0:10:49]} 22. Bc4 {[%emt 0:01:38]} Ba3 {[%emt 0:01:46]} 23. Ne4 {[%emt 0:08:39]} Bxc1 {[%emt 0:01:41]} 24. Qxc1 {[%emt 0:00:12]} Nxg3 {[%emt 0:05:11]} 25. fxg3 {[%emt 0:02:10]} Nxe5 {[%emt 0:01:37]} 26. Nxe5 {[%emt 0:01:03]} Rxe5 {[%emt 0:00:12]} 27. Nd6 {[%emt 0:00:44]} Bc6 {[%emt 0:05:25]} 28. Qf4 {[%emt 0:03:55]} Re2 {[%emt 0:00:53]} 29. Rb7 {[%emt 0:06:22]} Qxb7 {[%emt 0:05:20]} 30. Nxb7 {[%emt 0:01:03]} Bxb7 {[%emt 0:00:13]} 31. Qc7 {[%emt 0:01:24]} Rxg2+ {[%emt 0:00:20]} 32. Kf1 {[%emt 0:00:48]} Rb2 {[%emt 0:00:06]} 0-1

[Event "Mitropa Online Cup Women 2021"]
[Site "Hybrid"]
[Date "2021.05.04"]
[Round "4.4"]
[White "Zimina, Olga"]
[Black "Mueller-Seps, Monika"]
[Result "1/2-1/2"]
[ECO "E91"]
[WhiteElo "2354"]
[BlackElo "2243"]
[Annotator "NA"]
[PlyCount "125"]
[EventDate "2021.05.04"]
[EventType "team-tourn"]
[EventCountry "NET"]
[SourceTitle "playchess.com"]
[Source "ChessBase"]
[SourceQuality "1"]
[WhiteTeam "Italy"]
[BlackTeam "Switzerland"]
[WhiteTeamCountry "ITA"]
[BlackTeamCountry "SUI"]
[TimeControl "40/5400+30:1800+30"]

1. d4 {[%emt 0:00:00]} Nf6 {[%emt 0:00:08]} 2. c4 {[%emt 0:00:15]} g6 {[%emt 0:00:12]} 3. Nc3 {[%emt 0:00:07]} Bg7 {[%emt 0:00:15]} 4. e4 {[%emt 0:00:09]} d6 {[%emt 0:00:06]} 5. Nf3 {[%emt 0:00:38]} O-O {[%emt 0:00:15]} 6. Be2 {[%emt 0:00:11]} Bg4 {[%emt 0:00:10]} 7. Be3 {[%emt 0:00:18]} Nfd7 {[%emt 0:00:21]} 8. O-O {[%emt 0:00:32]} Nc6 {[%emt 0:08:00]} 9. d5 {[%emt 0:00:21]} Bxf3 {[%emt 0:00:09]} 10. Bxf3 {[%emt 0:00:09]} Na5 {[%emt 0:00:08]} 11. Be2 {[%emt 0:00:08]} Bxc3 {[%emt 0:00:11]} 12. bxc3 {[%emt 0:00:13]} e5 {[%emt 0:00:08]} 13. dxe6 {[%emt 0:00:13]} fxe6 {[%emt 0:00:11]} 14. c5 {[%emt 0:00:10]} Nxc5 {[%emt 0:09:29]} 15. e5 {[%emt 0:00:28]} Qe7 {[%emt 0:04:36]} 16. exd6 {[%emt 0:09:34]} cxd6 {[%emt 0:00:16]} 17. Re1 {[%emt 0:00:35]} Nd7 {[%emt 0:32:58]} 18. Qa4 {[%emt 0:10:53]} b6 {[%emt 0:03:54]} 19. Rad1 {[%emt 0:01:13]} Nf6 {[%emt 0:01:06]} 20. Bg5 {[%emt 0:08:27]} Rac8 {[%emt 0:10:35]} 21. Bf3 {[%emt 0:31:05]} Rc4 {[%emt 0:06:54]} 22. Qa3 {[%emt 0:01:35]} Rc5 {[%emt 0:03:10]} 23. Bd5 {[%emt 0:03:47]} Rxd5 {[%emt 0:00:40]} 24. Rxd5 {[%emt 0:00:14]} Qf7 {[%emt 0:00:38]} 25. Rd3 {[%emt 0:13:01]} Nc4 {[%emt 0:04:27]} 26. Qb3 {[%emt 0:03:48]} Ne5 {[%emt 0:04:38]} 27. Rd2 {[%emt 0:01:07]} Nd5 {[%emt 0:01:22]} 28. c4 {[%emt 0:02:26]} Nf4 {[%emt 0:01:40]} 29. Qe3 {[%emt 0:07:24]} Nxc4 {[%emt 0:00:29]} 30. Qxf4 {[%emt 0:00:25]} Qxf4 {[%emt 0:00:03]} 31. Bxf4 {[%emt 0:00:10]} Rxf4 {[%emt 0:00:02]} 32. Rd3 {[%emt 0:03:16]} Kf7 {[%emt 0:03:37]} 33. g3 {[%emt 0:02:03]} Rf5 {[%emt 0:00:02]} 34. Kg2 {[%emt 0:00:21]} b5 {[%emt 0:02:03]} 35. Rd4 {[%emt 0:01:18]} Rc5 {[%emt 0:00:16]} 36. Rf4+ {[%emt 0:00:10]} Ke7 {[%emt 0:00:19]} 37. Rfe4 {[%emt 0:00:56]} Re5 {[%emt 0:00:02]} 38. Rxe5 {[%emt 0:00:33]} Nxe5 {[%emt 0:00:21]} 39. Rb1 {[%emt 0:00:22]} a6 {[%emt 0:00:35]} 40. a4 {[%emt 0:00:00]} bxa4 {[%emt 0:00:00]} 41. Rb7+ {[%emt 0:11:00]} Kf6 {[%emt 0:16:49]} 42. Ra7 {[%emt 0:13:15]} Nc4 {[%emt 0:00:08]} 43. Rxa6 {[%emt 0:00:07]} a3 {[%emt 0:00:01]} 44. f4 {[%emt 0:00:17]} g5 {[%emt 0:11:11]} 45. fxg5+ {[%emt 0:02:55]} Kxg5 {[%emt 0:00:13]} 46. Rc6 {[%emt 0:00:22]} a2 {[%emt 0:03:55]} 47. Ra6 {[%emt 0:00:10]} h5 {[%emt 0:00:25]} 48. Rxa2 {[%emt 0:02:42]} d5 {[%emt 0:00:07]} 49. Ra8 {[%emt 0:00:57]} Ne3+ {[%emt 0:00:32]} 50. Kf3 {[%emt 0:00:11]} Ng4 {[%emt 0:00:31]} 51. h3 {[%emt 0:00:48]} Nf6 {[%emt 0:00:02]} 52. Ra7 {[%emt 0:03:12]} Kf5 {[%emt 0:02:29]} 53. Rg7 {[%emt 0:00:17]} Ne4 {[%emt 0:02:48]} 54. h4 {[%emt 0:01:03]} e5 {[%emt 0:00:53]} 55. Ke3 {[%emt 0:00:30]} d4+ {[%emt 0:01:39]} 56. Kd3 {[%emt 0:00:06]} Nf2+ {[%emt 0:00:22]} 57. Ke2 {[%emt 0:00:07]} Ne4 {[%emt 0:00:09]} 58. Rg8 {[%emt 0:00:09]} Nf6 {[%emt 0:00:12]} 59. Rg5+ {[%emt 0:00:56]} Ke4 {[%emt 0:00:23]} 60. Rg6 {[%emt 0:00:28]} Kf5 {[%emt 0:01:00]} 61. Rg5+ {[%emt 0:00:08]} Ke4 {[%emt 0:00:02]} 62. Rg6 {[%emt 0:00:31]} Kf5 {[%emt 0:00:02]} 63. Rg5+ {[%emt 0:00:53]} 1/2-1/2

[Event "Mitropa Online Cup Women 2021"]
[Site "Hybrid"]
[Date "2021.05.04"]
[Round "4.4"]
[White "Hakimifard, Ghazal"]
[Black "Brunello, Marina"]
[Result "0-1"]
[ECO "B90"]
[WhiteElo "2265"]
[BlackElo "2367"]
[Annotator "NA"]
[PlyCount "110"]
[EventDate "2021.05.04"]
[EventType "team-tourn"]
[EventCountry "NET"]
[SourceTitle "playchess.com"]
[Source "ChessBase"]
[SourceQuality "1"]
[WhiteTeam "Switzerland"]
[BlackTeam "Italy"]
[WhiteTeamCountry "SUI"]
[BlackTeamCountry "ITA"]
[TimeControl "40/5400+30:1800+30"]

1. e4 {[%emt 0:00:00]} c5 {[%emt 0:00:03]} 2. Nf3 {[%emt 0:00:05]} d6 {[%emt 0:00:58]} 3. d4 {[%emt 0:00:04]} cxd4 {[%emt 0:00:23]} 4. Nxd4 {[%emt 0:00:05]} Nf6 {[%emt 0:00:01]} 5. Nc3 {[%emt 0:00:05]} a6 {[%emt 0:00:02]} 6. Be3 {[%emt 0:00:06]} e5 {[%emt 0:00:03]} 7. Nf3 {[%emt 0:00:05]} Qc7 {[%emt 0:00:05]} 8. a4 {[%emt 0:00:08]} Be7 {[%emt 0:00:08]} 9. a5 {[%emt 0:00:14]} O-O {[%emt 0:00:30]} 10. Be2 {[%emt 0:00:52]} Nbd7 {[%emt 0:00:05]} 11. Nd2 {[%emt 0:02:53]} b5 {[%emt 0:02:19]} 12. axb6 {[%emt 0:00:45]} Nxb6 {[%emt 0:00:04]} 13. Bxb6 {[%emt 0:01:40]} Qxb6 {[%emt 0:00:04]} 14. Nc4 {[%emt 0:01:57]} Qc6 {[%emt 0:06:23]} 15. O-O {[%emt 0:10:55]} Rb8 {[%emt 0:08:06]} 16. Nd5 {[%emt 0:05:46]} Nxd5 {[%emt 0:02:43]} 17. exd5 {[%emt 0:00:06]} Qe8 {[%emt 0:03:49]} 18. Qd2 {[%emt 0:06:12]} f5 {[%emt 0:04:52]} 19. Ra3 {[%emt 0:03:02]} Qg6 {[%emt 0:04:46]} 20. Na5 {[%emt 0:13:42]} Bg5 {[%emt 0:12:01]} 21. Qc3 {[%emt 0:05:37]} e4 {[%emt 0:14:45]} 22. f4 {[%emt 0:16:34]} exf3 {[%emt 0:00:34]} 23. Bxf3 {[%emt 0:01:48]} Bf6 {[%emt 0:00:59]} 24. Qc7 {[%emt 0:01:47]} Rxb2 {[%emt 0:01:16]} 25. Kh1 {[%emt 0:01:48]} Bg5 {[%emt 0:06:56]} 26. Rc3 {[%emt 0:07:13]} Qh6 {[%emt 0:07:34]} 27. Be2 {[%emt 0:04:07]} Rb4 {[%emt 0:04:22]} 28. Nc4 {[%emt 0:01:27]} Bf4 {[%emt 0:01:20]} 29. Rh3 {[%emt 0:02:02]} Qg5 {[%emt 0:00:31]} 30. Rh5 {[%emt 0:00:41]} Qg6 {[%emt 0:00:12]} 31. Rh4 {[%emt 0:02:00]} Rb7 {[%emt 0:01:30]} 32. Qc6 {[%emt 0:01:14]} Re7 {[%emt 0:06:40]} 33. Bf3 {[%emt 0:05:44]} Be5 {[%emt 0:05:06]} 34. Nxe5 {[%emt 0:02:08]} Rxe5 {[%emt 0:00:11]} 35. Bh5 {[%emt 0:01:05]} Qg5 {[%emt 0:00:59]} 36. g3 {[%emt 0:01:06]} Qe7 {[%emt 0:00:19]} 37. Rb4 {[%emt 0:01:49]} Re1 {[%emt 0:01:12]} 38. Kg2 {[%emt 0:00:23]} Rxf1 {[%emt 0:01:43]} 39. Kxf1 {[%emt 0:00:02]} f4 {[%emt 0:00:18]} 40. Rxf4 {[%emt 0:00:00]} Rxf4+ {[%emt 0:00:00]} 41. gxf4 {[%emt 0:02:06]} Bh3+ {[%emt 0:00:33]} 42. Kf2 {[%emt 0:00:02]} Qh4+ {[%emt 0:00:19]} 43. Ke3 {[%emt 0:00:01]} Qxh5 {[%emt 0:00:43]} 44. Qxd6 {[%emt 0:01:43]} Qe8+ {[%emt 0:00:54]} 45. Kd4 {[%emt 0:02:40]} a5 {[%emt 0:06:22]} 46. c4 {[%emt 0:02:01]} a4 {[%emt 0:09:02]} 47. Qa6 {[%emt 0:00:35]} Bf5 {[%emt 0:01:41]} 48. Kc3 {[%emt 0:10:44]} h6 {[%emt 0:01:31]} 49. Kb4 {[%emt 0:01:45]} Bd3 {[%emt 0:02:23]} 50. d6 {[%emt 0:03:09]} Bc2 {[%emt 0:05:45]} 51. Qa7 {[%emt 0:03:34]} Bf5 {[%emt 0:02:25]} 52. Qxa4 {[%emt 0:02:38]} Qe1+ {[%emt 0:01:29]} 53. Kc5 {[%emt 0:01:09]} Qe3+ {[%emt 0:00:21]} 54. Kb4 {[%emt 0:01:15]} Qb6+ {[%emt 0:00:07]} 55. Kc3 {[%emt 0:01:53]} Qxd6 {[%emt 0:00:06]} 0-1